[Event "Championnat d'Europe Rapide"]
[Date "2024.12.07"]
[White "Smeets, Jan"]
[Black "Popovic, Milos T"]
[WhiteElo "2552"]
[BlackElo "2334"]
[Round "3.22"]
[Result "0-1"]
[TimeControl "900+10"]

1. e4 {[%emt 00:00:02] [%clk 00:15:18]} c5 {[%emt 00:00:03] [%clk 00:15:17]} 2.
Nf3 {[%emt 00:00:02] [%clk 00:15:26]} Nc6 {[%emt 00:00:06] [%clk 00:15:22]} 3.
Bb5 {[%emt 00:00:03] [%clk 00:15:33]} e5 {[%emt 00:00:40] [%clk 00:14:52]} 4.
O-O {[%emt 00:00:32] [%clk 00:15:10]} Nge7 {[%emt 00:00:23] [%clk 00:14:40]} 5.
c3 {[%emt 00:00:55] [%clk 00:14:25]} g6 {[%emt 00:00:03] [%clk 00:14:47]} 6. d4
{[%emt 00:00:01] [%clk 00:14:34]} cxd4 {[%emt 00:00:01] [%clk 00:14:56]} 7. cxd4
{[%emt 00:00:01] [%clk 00:14:43]} exd4 {[%clk 00:15:05]} 8. Bf4 {[%emt 00:01:11]
[%clk 00:13:42]} Bg7 {[%emt 00:00:02] [%clk 00:15:13]} 9. Bd6 {[%emt 00:00:14]
[%clk 00:13:38]} O-O {[%emt 00:00:02] [%clk 00:15:21]} 10. Nbd2 {[%clk
00:13:47]} a6 {[%emt 00:00:02] [%clk 00:15:30]} 11. Bd3 {[%emt 00:00:30] [%clk
00:13:26]} b5 {[%emt 00:00:19] [%clk 00:15:21]} 12. a4 {[%emt 00:00:02] [%clk
00:13:34]} Bb7 {[%emt 00:01:27] [%clk 00:14:04]} 13. Nb3 {[%emt 00:01:12] [%clk
00:12:32]} Qb6 {[%emt 00:01:20] [%clk 00:12:54]} 14. a5 {[%emt 00:01:40] [%clk
00:11:03]} Qd8 {[%emt 00:00:08] [%clk 00:12:55]} 15. Qd2 {[%emt 00:03:40] [%clk
00:07:33]} Re8 {[%emt 00:01:16] [%clk 00:11:49]} 16. Nc5 {[%emt 00:00:53] [%clk
00:06:50]} Ra7 {[%emt 00:00:17] [%clk 00:11:42]} 17. Qf4 {[%emt 00:00:04] [%clk
00:06:56]} Nc8 {[%emt 00:00:03] [%clk 00:11:49]} 18. Bc7 {[%emt 00:00:55] [%clk
00:06:12]} Qe7 {[%emt 00:00:38] [%clk 00:11:20]} 19. Bb6 {[%emt 00:01:56] [%clk
00:04:26]} d6 {[%emt 00:00:26] [%clk 00:11:04]} 20. Nxb7 {[%emt 00:01:43] [%clk
00:02:53]} Rxb7 {[%emt 00:00:02] [%clk 00:11:12]} 21. Rac1 {[%emt 00:00:01]
[%clk 00:03:02]} Ne5 {[%emt 00:00:52] [%clk 00:10:30]} 22. Rfd1 {[%emt 00:00:03]
[%clk 00:03:09]} Nxb6 {[%emt 00:00:02] [%clk 00:10:38]} 23. axb6 {[%emt
00:00:02] [%clk 00:03:17]} Nxd3 {[%emt 00:00:47] [%clk 00:10:01]} 24. Rxd3
{[%emt 00:00:01] [%clk 00:03:26]} Rxb6 {[%clk 00:10:10]} 25. Qd2 {[%emt
00:01:31] [%clk 00:02:04]} Qxe4 {[%emt 00:00:18] [%clk 00:10:02]} 26. Re1 {[%emt
00:00:36] [%clk 00:01:38]} Qa8 {[%emt 00:00:02] [%clk 00:10:11]} 27. Ra1 {[%emt
00:00:23] [%clk 00:01:25]} Rc6 {[%emt 00:00:45] [%clk 00:09:37]} 28. Nxd4 {[%emt
00:00:12] [%clk 00:01:22]} Bxd4 {[%emt 00:00:01] [%clk 00:09:45]} 29. Rxd4
{[%emt 00:00:02] [%clk 00:01:31]} Qc8 {[%clk 00:09:54]} 30. Rxd6 {[%emt
00:00:59] [%clk 00:00:43]} Rc2 {[%emt 00:00:12] [%clk 00:09:52]} 31. Qf4 {[%emt
00:00:01] [%clk 00:00:52]} Rxb2 {[%emt 00:02:40] [%clk 00:07:22]} 32. Rad1
{[%emt 00:00:22] [%clk 00:00:40]} Rbe2 {[%emt 00:01:23] [%clk 00:06:09]} 33. h4
{[%emt 00:00:12] [%clk 00:00:38]} Re1+ {[%emt 00:00:05] [%clk 00:06:14]} 34.
Rxe1 {[%emt 00:00:02] [%clk 00:00:46]} Rxe1+ {[%emt 00:00:02] [%clk 00:06:23]}
35. Kh2 {[%clk 00:00:55]} Re6 {[%emt 00:00:21] [%clk 00:06:12]} 36. Rd4 {[%emt
00:00:07] [%clk 00:00:58]} h5 {[%emt 00:00:17] [%clk 00:06:06]} 37. g3 {[%emt
00:00:30] [%clk 00:00:38]} Kg7 {[%emt 00:00:06] [%clk 00:06:09]} 38. Rd5 {[%emt
00:00:02] [%clk 00:00:47]} Rf6 {[%emt 00:00:03] [%clk 00:06:16]} 39. Qd2 {[%emt
00:00:29] [%clk 00:00:27]} Qc4 {[%emt 00:00:15] [%clk 00:06:11]} 40. Kg1 {[%emt
00:00:10] [%clk 00:00:27]} Rc6 {[%emt 00:00:20] [%clk 00:06:01]} 41. Kh2 {[%emt
00:00:06] [%clk 00:00:31]} b4 {[%emt 00:00:09] [%clk 00:06:02]} 42. Rd8 {[%emt
00:00:24] [%clk 00:00:17]} Qc3 {[%emt 00:00:16] [%clk 00:05:56]} 43. Qf4 {[%emt
00:00:07] [%clk 00:00:20]} Rf6 {[%emt 00:00:03] [%clk 00:06:02]} 44. Qb8 {[%emt
00:00:09] [%clk 00:00:22]} Rxf2+ {[%emt 00:00:03] [%clk 00:06:09]} 45. Kh3
{[%emt 00:00:01] [%clk 00:00:31]} Kh7 {[%emt 00:00:03] [%clk 00:06:16]} 46. Qa8
{[%emt 00:00:28] [%clk 00:00:13]} Rf3 {[%emt 00:00:08] [%clk 00:06:17]} 47. Rh8+
{[%emt 00:00:09] [%clk 00:00:14]} Qxh8 {[%emt 00:00:03] [%clk 00:06:25]} 48.
Qxf3 {[%emt 00:00:01] [%clk 00:00:23]} Qe8 {[%emt 00:00:04] [%clk 00:06:31]} 49.
Qb7 {[%emt 00:00:03] [%clk 00:00:30]} Qe6+ {[%emt 00:00:04] [%clk 00:06:36]} 50.
Kh2 {[%emt 00:00:01] [%clk 00:00:40]} b3 {[%emt 00:00:01] [%clk 00:06:45]} 0-1

[Site "Europe Echecs"]

[Event "Championnat d'Europe Rapide"]
[Date "2024.12.07"]
[White "Brunner, Nicolas"]
[Black "Grigoriants, Sergey"]
[WhiteElo "2413"]
[BlackElo "2542"]
[Round "3.23"]
[Result "1/2-1/2"]
[TimeControl "900+10"]

1. d4 {[%emt 00:20:09] [%clk 00:15:18]} Nf6 {[%emt 00:00:04] [%clk 00:15:16]} 2.
c4 {[%emt 00:00:01] [%clk 00:15:27]} e6 {[%emt 00:00:05] [%clk 00:15:22]} 3. Nc3
{[%emt 00:00:02] [%clk 00:15:35]} Bb4 {[%emt 00:00:06] [%clk 00:15:25]} 4. Nf3
{[%emt 00:00:02] [%clk 00:15:43]} b6 {[%emt 00:00:26] [%clk 00:15:10]} 5. e3
{[%emt 00:00:01] [%clk 00:15:52]} Bb7 {[%emt 00:00:23] [%clk 00:14:57]} 6. Bd3
{[%emt 00:00:02] [%clk 00:16:00]} O-O {[%emt 00:01:41] [%clk 00:13:27]} 7. O-O
{[%emt 00:00:02] [%clk 00:16:07]} Bxc3 {[%emt 00:02:57] [%clk 00:10:40]} 8. bxc3
{[%emt 00:00:02] [%clk 00:16:15]} Ne4 {[%emt 00:00:02] [%clk 00:10:48]} 9. Qc2
{[%emt 00:00:06] [%clk 00:16:19]} f5 {[%emt 00:00:01] [%clk 00:10:57]} 10. Nd2
{[%emt 00:00:21] [%clk 00:16:08]} Nxd2 {[%emt 00:00:57] [%clk 00:10:10]} 11.
Bxd2 {[%emt 00:00:03] [%clk 00:16:15]} Qh4 {[%emt 00:00:11] [%clk 00:10:08]} 12.
f3 {[%emt 00:00:12] [%clk 00:16:14]} Nc6 {[%emt 00:00:02] [%clk 00:10:17]} 13.
Be1 {[%emt 00:00:05] [%clk 00:16:18]} Qg5 {[%emt 00:00:09] [%clk 00:10:17]} 14.
e4 {[%emt 00:00:12] [%clk 00:16:16]} Ne7 {[%emt 00:00:43] [%clk 00:09:44]} 15.
Bg3 {[%emt 00:01:38] [%clk 00:14:48]} d6 {[%emt 00:00:40] [%clk 00:09:15]} 16.
Rae1 {[%emt 00:01:28] [%clk 00:13:29]} Rae8 {[%emt 00:01:09] [%clk 00:08:16]}
17. c5 {[%emt 00:01:06] [%clk 00:12:33]} bxc5 {[%emt 00:01:02] [%clk 00:07:24]}
18. dxc5 {[%emt 00:03:34] [%clk 00:09:09]} fxe4 {[%emt 00:00:13] [%clk
00:07:21]} 19. Bxe4 {[%emt 00:00:16] [%clk 00:09:03]} Bxe4 {[%emt 00:00:55]
[%clk 00:06:36]} 20. Qxe4 {[%emt 00:00:05] [%clk 00:09:08]} Qxc5+ {[%emt
00:00:15] [%clk 00:06:30]} 21. Bf2 {[%emt 00:00:08] [%clk 00:09:11]} Qd5 {[%emt
00:00:08] [%clk 00:06:32]} 22. Qxe6+ {[%emt 00:00:15] [%clk 00:09:06]} Qxe6
{[%emt 00:00:05] [%clk 00:06:37]} 23. Rxe6 {[%emt 00:00:02] [%clk 00:09:14]} Nd5
{[%emt 00:00:36] [%clk 00:06:11]} 24. Rxe8 {[%emt 00:01:05] [%clk 00:08:19]}
Rxe8 {[%emt 00:00:01] [%clk 00:06:20]} 25. c4 {[%emt 00:00:02] [%clk 00:08:26]}
Nb6 {[%emt 00:00:28] [%clk 00:06:02]} 26. c5 {[%emt 00:00:10] [%clk 00:08:27]}
dxc5 {[%emt 00:00:07] [%clk 00:06:05]} 27. Bxc5 {[%emt 00:00:02] [%clk
00:08:36]} Re2 {[%emt 00:00:05] [%clk 00:06:09]} 28. Rf2 {[%emt 00:00:16] [%clk
00:08:30]} Re1+ {[%emt 00:00:25] [%clk 00:05:54]} 29. Rf1 {[%emt 00:00:01]} Re2
30. Rf2 {[%emt 00:00:01] [%clk 00:08:37]} 1/2-1/2

[Site "Europe Echecs"]

[Event "Championnat d'Europe Rapide"]
[Date "2024.12.07"]
[White "Gatineau, Yovann"]
[Black "Saric, Ante"]
[WhiteElo "2363"]
[BlackElo "2482"]
[Round "3.24"]
[Result "1/2-1/2"]
[TimeControl "900+10"]

1. d4 {[%emt 00:00:03] [%clk 00:15:19]} Nf6 {[%emt 00:00:01]} 2. c4 {[%clk
00:15:27]} e6 {[%clk 00:15:29]} 3. Nf3 {[%emt 00:00:02] [%clk 00:15:36]} b6
{[%emt 00:00:02] [%clk 00:15:36]} 4. g3 {[%emt 00:00:05] [%clk 00:15:40]} Bb7
{[%emt 00:00:03] [%clk 00:15:44]} 5. Bg2 {[%emt 00:00:01] [%clk 00:15:48]} Bb4+
{[%emt 00:00:04] [%clk 00:15:50]} 6. Bd2 {[%emt 00:00:03] [%clk 00:15:56]} Be7
{[%emt 00:00:01] [%clk 00:15:59]} 7. O-O {[%emt 00:00:06] [%clk 00:15:59]} c6
{[%emt 00:00:02] [%clk 00:16:08]} 8. Nc3 {[%emt 00:00:12] [%clk 00:15:57]} d5
{[%emt 00:00:02] [%clk 00:16:17]} 9. b3 {[%emt 00:00:50] [%clk 00:15:16]} dxc4
{[%emt 00:00:14] [%clk 00:16:13]} 10. bxc4 {[%emt 00:00:01] [%clk 00:15:24]} c5
{[%clk 00:16:23]} 11. Bf4 {[%emt 00:01:21] [%clk 00:14:13]} cxd4 {[%emt
00:00:46] [%clk 00:15:48]} 12. Nb5 {[%emt 00:00:32] [%clk 00:13:50]} Na6 {[%emt
00:00:54] [%clk 00:15:03]} 13. Nfxd4 {[%emt 00:00:20] [%clk 00:13:41]} Bxg2
{[%emt 00:00:16] [%clk 00:14:57]} 14. Kxg2 {[%emt 00:00:02] [%clk 00:13:49]} Qc8
{[%emt 00:00:32] [%clk 00:14:34]} 15. Rc1 {[%emt 00:05:35] [%clk 00:08:24]} O-O
{[%emt 00:00:15] [%clk 00:14:29]} 16. Qb3 {[%emt 00:00:10] [%clk 00:08:25]} Qb7+
{[%emt 00:00:33] [%clk 00:14:07]} 17. Qf3 {[%emt 00:00:15] [%clk 00:08:19]}
Qxf3+ {[%emt 00:02:13] [%clk 00:12:04]} 18. Kxf3 {[%emt 00:00:01] [%clk
00:08:27]} Rfc8 {[%emt 00:00:01] [%clk 00:12:14]} 19. Rfd1 {[%emt 00:00:12]
[%clk 00:08:25]} Ne8 {[%emt 00:00:16] [%clk 00:12:08]} 20. Nb3 {[%emt 00:00:45]
[%clk 00:07:49]} Nc5 {[%emt 00:00:40] [%clk 00:11:39]} 21. Nxc5 {[%emt 00:00:15]
[%clk 00:07:44]} Bxc5 {[%emt 00:00:09] [%clk 00:11:40]} 22. Rd7 {[%emt 00:00:48]
[%clk 00:07:05]} a6 {[%emt 00:02:05] [%clk 00:09:45]} 23. Nd6 {[%emt 00:01:47]
[%clk 00:05:29]} Nxd6 {[%emt 00:01:44] [%clk 00:08:11]} 24. Bxd6 {[%emt
00:00:03] [%clk 00:05:35]} h6 {[%emt 00:00:26] [%clk 00:07:55]} 25. Rd1 {[%emt
00:00:39] [%clk 00:05:06]} Bxd6 {[%emt 00:02:23] [%clk 00:05:42]} 26. R1xd6
{[%emt 00:00:02] [%clk 00:05:13]} 1/2-1/2

[Site "Europe Echecs"]

[Event "Championnat d'Europe Rapide"]
[Date "2024.12.07"]
[White "Nevednichy, Vladislav"]
[Black "Pantsulaia, Levan"]
[WhiteElo "2451"]
[BlackElo "2522"]
[Round "3.25"]
[Result "1/2-1/2"]
[TimeControl "900+10"]

1. e4 {[%emt 00:00:01] [%clk 00:15:17]} c5 {[%emt 00:00:06] [%clk 00:15:15]} 2.
Nf3 {[%emt 00:00:02] [%clk 00:15:26]} e6 {[%emt 00:00:01] [%clk 00:15:23]} 3. d4
{[%emt 00:00:14] [%clk 00:15:22]} cxd4 {[%emt 00:00:01] [%clk 00:15:32]} 4. Nxd4
{[%clk 00:15:31]} a6 {[%emt 00:00:02] [%clk 00:15:41]} 5. Bd3 {[%emt 00:00:36]
[%clk 00:15:04]} d5 {[%emt 00:00:02] [%clk 00:15:49]} 6. O-O {[%emt 00:01:50]
[%clk 00:13:24]} dxe4 {[%emt 00:00:32] [%clk 00:15:27]} 7. Bxe4 {[%emt 00:00:02]
[%clk 00:13:31]} Nf6 {[%emt 00:00:02] [%clk 00:15:35]} 8. Bf3 {[%emt 00:00:07]
[%clk 00:13:35]} Bd6 {[%emt 00:02:00] [%clk 00:13:45]} 9. Nc3 {[%emt 00:02:28]
[%clk 00:11:17]} h6 {[%emt 00:01:26] [%clk 00:12:29]} 10. g3 {[%emt 00:01:13]
[%clk 00:10:14]} O-O {[%emt 00:00:07] [%clk 00:12:31]} 11. Re1 {[%emt 00:00:26]
[%clk 00:09:59]} Re8 {[%emt 00:01:27] [%clk 00:11:13]} 12. Qd3 {[%emt 00:01:46]
[%clk 00:08:24]} Bc7 {[%emt 00:00:40] [%clk 00:10:43]} 13. Be3 {[%emt 00:01:33]
[%clk 00:07:01]} Nbd7 {[%emt 00:00:30] [%clk 00:10:22]} 14. Qe2 {[%emt 00:00:58]
[%clk 00:06:14]} Ne5 {[%emt 00:02:44] [%clk 00:07:48]} 15. Rad1 {[%emt 00:00:19]
[%clk 00:06:05]} Nxf3+ {[%emt 00:00:08] [%clk 00:07:50]} 16. Qxf3 {[%emt
00:00:04] [%clk 00:06:12]} Qe7 {[%emt 00:00:26] [%clk 00:07:33]} 17. Nb3 {[%emt
00:04:00] [%clk 00:02:22]} e5 {[%emt 00:00:43] [%clk 00:07:00]} 18. Ne4 {[%emt
00:00:48] [%clk 00:01:44]} Nxe4 {[%emt 00:00:13] [%clk 00:06:57]} 19. Qxe4
{[%emt 00:00:01] [%clk 00:01:53]} f5 {[%emt 00:00:53] [%clk 00:06:14]} 20. Qd5+
{[%emt 00:00:04] [%clk 00:01:59]} Qf7 {[%emt 00:00:16] [%clk 00:06:08]} 21.
Qxf7+ {[%emt 00:00:29] [%clk 00:01:40]} Kxf7 {[%emt 00:00:01] [%clk 00:06:17]}
22. f4 {[%emt 00:00:14] [%clk 00:01:36]} exf4 {[%emt 00:00:53] [%clk 00:05:34]}
23. Bxf4 {[%emt 00:00:03] [%clk 00:01:43]} Bb6+ {[%emt 00:00:01] [%clk
00:05:43]} 24. Kf1 {[%emt 00:00:01] [%clk 00:01:52]} Be6 {[%emt 00:00:57] [%clk
00:04:57]} 25. Kg2 {[%emt 00:01:37] [%clk 00:00:24]} g5 {[%emt 00:00:49] [%clk
00:04:17]} 26. Be3 {[%emt 00:00:10] [%clk 00:00:25]} Bxb3 {[%emt 00:01:17] [%clk
00:03:10]} 27. Bxb6 {[%emt 00:00:02] [%clk 00:00:33]} Rxe1 {[%emt 00:00:25]
[%clk 00:02:55]} 28. Rxe1 {[%clk 00:00:43]} Bxc2 {[%emt 00:00:02] [%clk
00:03:02]} 29. Rc1 {[%emt 00:00:02] [%clk 00:00:51]} Be4+ {[%emt 00:00:04] [%clk
00:03:08]} 30. Kf2 {[%emt 00:00:01] [%clk 00:01:01]} Re8 {[%emt 00:00:10] [%clk
00:03:08]} 31. Rc7+ {[%emt 00:00:04] [%clk 00:01:06]} Kg6 {[%emt 00:00:02] [%clk
00:03:16]} 32. h3 {[%emt 00:00:19] [%clk 00:00:57]} Re6 {[%emt 00:01:36] [%clk
00:01:50]} 33. Bd4 {[%emt 00:00:11] [%clk 00:00:57]} Rd6 {[%emt 00:00:01] [%clk
00:01:58]} 34. Ke3 {[%emt 00:00:07] [%clk 00:01:00]} Bg2 {[%emt 00:00:11] [%clk
00:01:57]} 35. Be5 {[%emt 00:00:22] [%clk 00:00:49]} Re6 {[%emt 00:00:05] [%clk
00:02:01]} 36. Kd4 {[%clk 00:00:58]} Bxh3 {[%emt 00:00:18] [%clk 00:01:53]} 37.
Rxb7 {[%emt 00:00:01] [%clk 00:01:07]} Kh5 {[%emt 00:00:09] [%clk 00:01:54]} 38.
Kd5 {[%emt 00:00:30] [%clk 00:00:48]} Rg6 {[%emt 00:00:07] [%clk 00:01:57]} 39.
Rb4 {[%emt 00:00:02] [%clk 00:00:56]} Bg2+ {[%emt 00:00:15] [%clk 00:01:51]} 40.
Kd4 {[%emt 00:00:07] [%clk 00:00:59]} Be4 {[%emt 00:00:10] [%clk 00:01:52]} 41.
a4 {[%emt 00:00:15] [%clk 00:00:54]} Kg4 {[%emt 00:00:08] [%clk 00:01:54]} 42.
a5 {[%emt 00:00:03] [%clk 00:01:01]} h5 {[%emt 00:00:06] [%clk 00:01:56]} 43.
Rb6 {[%emt 00:00:33] [%clk 00:00:39]} Rxb6 {[%emt 00:00:03] [%clk 00:02:04]} 44.
axb6 {[%clk 00:00:48]} Kf3 {[%emt 00:01:07] [%clk 00:01:08]} 45. b4 {[%emt
00:00:38] [%clk 00:00:20]} h4 {[%emt 00:00:15] [%clk 00:01:03]} 46. gxh4 {[%clk
00:00:29]} gxh4 {[%emt 00:00:01] [%clk 00:01:12]} 47. Bh2 {[%emt 00:00:18] [%clk
00:00:20]} h3 {[%emt 00:00:55] [%clk 00:00:28]} 48. Ke5 {[%emt 00:00:01] [%clk
00:00:28]} Kg4 {[%emt 00:00:23] [%clk 00:00:15]} 49. Kd4 {[%emt 00:00:09] [%clk
00:00:30]} Bb7 {[%emt 00:00:14] [%clk 00:00:12]} 50. Ke3 {[%clk 00:00:38]} Kg5
{[%emt 00:00:06] [%clk 00:00:15]} 51. Be5 {[%emt 00:00:04] [%clk 00:00:45]} Kg6
{[%emt 00:00:02] [%clk 00:00:23]} 52. Kf2 {[%emt 00:00:05] [%clk 00:00:50]} Kf7
{[%emt 00:00:02] [%clk 00:00:30]} 53. Kg3 {[%emt 00:00:02] [%clk 00:00:58]} Ke6
{[%clk 00:00:40]} 54. Bc7 {[%emt 00:00:04] [%clk 00:01:03]} Bg2 {[%emt 00:00:03]
[%clk 00:00:47]} 55. b7 {[%emt 00:00:03] [%clk 00:01:11]} Bxb7 {[%emt 00:00:03]
[%clk 00:00:54]} 56. Kxh3 {[%clk 00:01:20]} 1/2-1/2

[Site "Europe Echecs"]

[Event "Championnat d'Europe Rapide"]
[Date "2024.12.07"]
[White "Djurovic, Peko"]
[Black "Kadric, Denis"]
[WhiteElo "2253"]
[BlackElo "2544"]
[Round "3.26"]
[Result "1/2-1/2"]
[TimeControl "900+10"]

1. e4 {[%emt 00:00:01] [%clk 00:15:19]} d6 {[%clk 00:15:20]} 2. d4 {[%emt
00:00:01] [%clk 00:15:28]} Nf6 {[%clk 00:15:29]} 3. Nc3 {[%emt 00:00:01] [%clk
00:15:37]} e5 {[%clk 00:15:38]} 4. Nf3 {[%emt 00:00:06] [%clk 00:15:40]} Nbd7
{[%emt 00:00:02] [%clk 00:15:47]} 5. Rg1 {[%emt 00:00:05] [%clk 00:15:44]} c6
{[%emt 00:00:11] [%clk 00:15:47]} 6. g4 {[%emt 00:00:03] [%clk 00:15:50]} h6
{[%clk 00:15:57]} 7. Be3 {[%emt 00:00:01] [%clk 00:15:59]} Be7 {[%emt 00:00:20]
[%clk 00:15:47]} 8. Qd2 {[%emt 00:00:01] [%clk 00:16:07]} exd4 {[%emt 00:00:07]
[%clk 00:15:51]} 9. Qxd4 {[%emt 00:02:33] [%clk 00:13:44]} Qc7 {[%emt 00:02:15]
[%clk 00:13:45]} 10. Bf4 {[%emt 00:01:36] [%clk 00:12:18]} Nf8 {[%emt 00:00:13]
[%clk 00:13:44]} 11. Bc4 {[%emt 00:01:59] [%clk 00:10:28]} Ne6 {[%emt 00:04:35]
[%clk 00:09:19]} 12. Bxe6 {[%emt 00:00:05] [%clk 00:10:33]} Bxe6 {[%emt
00:00:01] [%clk 00:09:28]} 13. O-O-O {[%emt 00:00:02] [%clk 00:10:41]} Rd8
{[%emt 00:01:32] [%clk 00:08:06]} 14. g5 {[%emt 00:00:49] [%clk 00:10:01]} hxg5
{[%emt 00:00:07] [%clk 00:08:10]} 15. Nxg5 {[%emt 00:00:03] [%clk 00:10:08]} Nh5
{[%emt 00:01:40] [%clk 00:06:40]} 16. Nxe6 {[%emt 00:01:14] [%clk 00:09:04]}
fxe6 {[%clk 00:06:49]} 17. Be3 {[%emt 00:00:15] [%clk 00:08:59]} a6 {[%emt
00:01:45] [%clk 00:05:14]} 18. Qc4 {[%emt 00:00:56] [%clk 00:08:13]} Kf7 {[%emt
00:00:33] [%clk 00:04:52]} 19. f4 {[%emt 00:01:34] [%clk 00:06:47]} Bf6 {[%emt
00:00:37] [%clk 00:04:26]} 20. f5 {[%emt 00:00:59] [%clk 00:05:58]} Qe7 {[%emt
00:00:01] [%clk 00:04:35]} 21. Bb6 {[%emt 00:05:16] [%clk 00:00:52]} Rd7 {[%emt
00:00:16] [%clk 00:04:30]} 22. Qf1 {[%emt 00:00:12] [%clk 00:00:49]} Kg8 {[%emt
00:01:19] [%clk 00:03:21]} 23. Rd3 {[%emt 00:00:18] [%clk 00:00:41]} Be5 {[%emt
00:00:50] [%clk 00:02:42]} 24. Bd4 {[%emt 00:00:26] [%clk 00:00:24]} Bxd4 {[%emt
00:01:47] [%clk 00:01:04]} 25. Rxd4 {[%clk 00:00:33]} exf5 {[%emt 00:00:01]
[%clk 00:01:14]} 26. Qxf5 {[%emt 00:00:24] [%clk 00:00:19]} Nf6 {[%emt 00:00:02]
[%clk 00:01:22]} 27. Rd2 {[%emt 00:00:13] [%clk 00:00:15]} Qe5 {[%emt 00:00:48]
[%clk 00:00:45]} 28. Qxe5 {[%emt 00:00:13] [%clk 00:00:12]} dxe5 {[%clk
00:00:54]} 29. Rxd7 {[%emt 00:00:01] [%clk 00:00:21]} Nxd7 {[%emt 00:00:01]
[%clk 00:01:03]} 30. Rd1 {[%clk 00:00:30]} Nf8 {[%emt 00:00:32] [%clk 00:00:41]}
31. Rd2 {[%emt 00:00:27] [%clk 00:00:14]} Kf7 {[%emt 00:00:04] [%clk 00:00:48]}
32. Nd1 {[%emt 00:00:09] [%clk 00:00:14]} Rh4 {[%emt 00:00:20] [%clk 00:00:38]}
33. Re2 {[%emt 00:00:13] [%clk 00:00:11]} Ne6 {[%emt 00:00:08] [%clk 00:00:40]}
34. Kd2 {[%emt 00:00:01] [%clk 00:00:19]} b5 {[%emt 00:00:29] [%clk 00:00:22]}
35. a3 {[%emt 00:00:17] [%clk 00:00:12]} a5 {[%emt 00:00:06] [%clk 00:00:26]}
36. Rf2+ {[%emt 00:00:04] [%clk 00:00:18]} Ke7 {[%emt 00:00:03] [%clk 00:00:33]}
37. Re2 {[%emt 00:00:04] [%clk 00:00:24]} Nc5 {[%emt 00:00:02] [%clk 00:00:41]}
38. b4 {[%emt 00:00:18] [%clk 00:00:16]} axb4 {[%emt 00:00:22] [%clk 00:00:29]}
39. axb4 {[%clk 00:00:25]} Ne6 {[%emt 00:00:12] [%clk 00:00:27]} 40. c3 {[%emt
00:00:04] [%clk 00:00:31]} Ng5 {[%emt 00:00:21] [%clk 00:00:16]} 41. Kd3 {[%emt
00:00:21] [%clk 00:00:20]} Ke6 {[%emt 00:00:02] [%clk 00:00:25]} 42. Rg2 {[%emt
00:00:09] [%clk 00:00:20]} Kf6 {[%emt 00:00:18] [%clk 00:00:19]} 43. Nf2 {[%emt
00:00:08] [%clk 00:00:21]} Nf7 {[%emt 00:00:15] [%clk 00:00:13]} 44. Ng4+ {[%emt
00:00:06] [%clk 00:00:25]} Ke6 {[%emt 00:00:03] [%clk 00:00:21]} 45. Ne3 {[%emt
00:00:03] [%clk 00:00:32]} g5 {[%emt 00:00:02] [%clk 00:00:30]} 46. Nf5 {[%emt
00:00:23] [%clk 00:00:18]} Rh3+ {[%emt 00:00:12] [%clk 00:00:28]} 47. Kc2 {[%emt
00:00:01] [%clk 00:00:27]} Rf3 {[%emt 00:00:19] [%clk 00:00:20]} 48. Kd2 {[%emt
00:00:20] [%clk 00:00:16]} Kf6 {[%emt 00:00:05] [%clk 00:00:25]} 49. Kc2 {[%clk
00:00:25]} Ke6 {[%emt 00:00:22] [%clk 00:00:14]} 50. Kd2 {[%clk 00:00:34]} Rh3
{[%emt 00:00:05] [%clk 00:00:18]} 51. Kc2 {[%emt 00:00:01] [%clk 00:00:42]} Rf3
{[%emt 00:00:10]} 52. Kd2 {[%clk 00:00:51]} Kf6 {[%emt 00:00:14] [%clk
00:00:15]} 53. Kc2 {[%emt 00:00:03] [%clk 00:00:58]} Ke6 {[%emt 00:00:10] [%clk
00:00:14]} 1/2-1/2

[Site "Europe Echecs"]